bitfinex/quotes_ETHUSD_20241018
["timestamp","ask_amount","ask_price","bid_price","bid_amount"]
[1729223832428,7.9763759,2613.0,2612.5,0.1499]
[1729223832641,3.8035,2613.4,2612.8,3.82718]
[1729223832968,3.39664452,2613.4,2612.8,3.82718]
[1729223833264,3.39664452,2613.4,2612.7,0.6483]
[1729223833265,10.65393884,2613.4,2612.7,0.6483]
[1729223833474,0.02156167,2613.3,2612.8,3.8273]
[1729223834165,3.84814167,2613.3,2612.8,3.8273]
[1729223835059,0.7827,2613.2,2612.9,0.04477246]
[1729223835264,4.60943,2613.2,2612.9,0.04477246]
[1729223835469,0.7827,2613.2,2612.7,4.47571]
[1729223835698,0.39664452,2613.4,2613.0,3.82699]
[1729223835841,0.39664452,2613.4,2613.1,1.10752695]
[1729223836170,3.0,2613.6,2613.2,7.69798297]
[1729223836325,3.0,2613.6,2613.2,3.87134297]
[1729223836574,0.02156167,2613.8,2613.3,3.82644]
[1729223836774,3.82599,2613.7,2613.2,0.12124773]
[1729223837074,3.82599,2613.7,2613.3,0.04470647]
[1729223837278,3.82599,2613.7,2613.1,4.857769]
[1729223837605,3.82599,2613.7,2613.2,3.8267]
[1729223837805,4.42522439,2613.8,2613.3,3.82647]
[1729223838012,3.82607,2613.7,2613.2,0.04472297]
[1729223838315,3.84782167,2613.6,2613.3,0.04470647]
[1729223838494,0.7992,2613.5,2613.0,3.82699]
[1729223838813,0.7992,2613.5,2613.4,0.04473358]
[1729223838814,4.62553,2613.5,2613.4,0.04473358]
[1729223838971,4.62553,2613.5,2613.0,3.82699]
[1729223838972,6.15558827,2613.5,2613.0,3.82699]
[1729223839172,6.15558827,2613.5,2612.9,3.82715]
[1729223839398,3.84812167,2613.4,2613.1,0.04478306]
[1729223839614,3.84812167,2613.4,2613.0,0.04479956]
[1729223839918,3.84812167,2613.4,2613.1,0.04478306]
[1729223840074,0.7992,2613.1,2612.6,3.82751]
[1729223840286,4.62619,2613.1,2612.6,3.82751]
[1729223840492,4.62619,2613.1,2612.7,0.04484907]
[1729223840790,3.82704,2613.0,2612.7,0.04484907]
[1729223841239,3.82704,2613.0,2612.5,4.62594]
[1729223841546,0.7992,2613.1,2612.6,3.8276]
[1729223841829,3.82672,2613.2,2612.6,7.7316608]
[1729223842004,3.82672,2613.2,2612.7,0.04484907]
[1729223842199,7.65353,2613.2,2612.7,0.04484907]
[1729223842401,3.82672,2613.2,2612.7,0.04484907]
[1729223842825,7.65355,2613.2,2612.7,0.04484907]
[1729223842998,0.02156167,2613.1,2612.7,0.04484907]
[1729223843202,8.60399827,2613.2,2612.7,0.04484907]
[1729223843402,4.77719827,2613.2,2612.7,3.87227907]
[1729223843835,8.60401827,2613.2,2612.7,0.04484907]
[1729223844024,3.82688,2613.1,2612.7,0.04484907]
[1729223844226,3.84859167,2613.0,2612.7,0.04484907]
[1729223844445,3.82689,2613.1,2612.7,0.04484907]
[1729223844740,3.82689,2613.1,2612.5,4.62585]
[1729223844929,3.82689,2613.1,2612.8,0.04504084]
[1729223845237,4.58466,2612.9,2612.5,0.1499]
[1729223845737,3.82689,2613.1,2612.5,0.1499]
[1729223845738,4.58439,2613.1,2612.5,0.1499]
[1729223845912,4.58439,2613.1,2612.6,3.90400098]
[1729223846114,4.58439,2613.1,2612.6,3.82746]
[1729223846317,8.41136,2613.1,2612.6,3.82746]
[1729223846563,4.58439,2613.1,2612.6,3.82746]
[1729223847201,7.65387,2613.1,2612.6,3.82746]
[1729223847403,3.82702,2613.0,2612.5,0.1499]
[1729223847731,3.82702,2613.0,2612.5,3.9776]
[1729223848104,3.82702,2613.0,2612.5,0.1499]
[1729223848449,3.82702,2613.0,2612.5,3.97764]
[1729223850014,3.82702,2613.0,2612.6,0.04507385]
[1729223850804,7.65412,2613.0,2612.6,0.04507385]
[1729223851256,3.82702,2613.0,2612.6,0.04507385]
[1729223852044,3.84836167,2613.2,2612.6,3.87261385]
[1729223852371,4.59447,2613.7,2613.2,0.6483]
[1729223852529,3.82607,2613.7,2613.2,4.47495]
[1729223852730,4.42519439,2613.8,2613.3,0.12166685]
[1729223852952,4.44675606,2613.8,2613.3,3.87169242]
[1729223853348,4.44675606,2613.8,2613.3,0.04514242]
[1729223853559,3.82606,2613.7,2613.2,0.6483]
[1729223853730,3.82606,2613.7,2613.4,0.04512592]
[1729223853930,3.82622,2613.6,2613.2,0.6483]
[1729223854163,6.82622,2613.6,2613.5,0.04510943]
[1729223854366,6.82622,2613.6,2613.2,0.6483]
[1729223854835,3.0,2613.6,2613.2,0.6483]
[1729223855037,3.0,2613.6,2613.3,0.04514242]
[1729223855549,3.0,2613.6,2613.2,0.6483]
[1729223855550,3.0,2613.6,2613.4,0.04512592]
[1729223855757,3.0,2613.6,2613.2,0.6483]
[1729223856076,3.0,2613.6,2613.5,0.04510943]
[1729223856373,3.0,2613.6,2613.3,0.04514242]
[1729223856533,3.0,2613.6,2613.2,0.6483]
[1729223856733,6.82617,2613.6,2613.4,0.04512592]
[1729223856977,3.0,2613.6,2613.2,0.6483]
[1729223857147,3.0,2613.6,2613.5,0.04510943]
[1729223857471,3.0,2613.6,2613.2,4.47502]
[1729223857658,3.0,2613.6,2613.5,0.04510943]
[1729223857862,3.0,2613.6,2613.2,4.47502]
[1729223858171,6.82616,2613.6,2613.2,0.6483]
[1729223858358,6.82616,2613.6,2613.3,0.04514242]
[1729223858359,3.82628,2613.5,2613.3,0.04514242]
[1729223858532,1.12731261,2613.6,2613.2,0.6483]
[1729223858738,4.95350261,2613.6,2613.4,0.04512592]
[1729223858973,4.95350261,2613.6,2613.2,0.6483]
[1729223859188,7.95350261,2613.6,2613.5,0.04510943]
[1729223859502,0.59934439,2613.8,2613.5,3.87131943]
[1729223859654,7.25676432,2613.8,2613.5,0.04510943]
[1729223859852,3.82598,2613.8,2613.5,0.04510943]
[1729223860557,3.82595,2613.8,2613.5,0.04510943]
[1729223860854,4.34595467,2613.8,2613.5,0.04510943]
[1729223861489,4.34593467,2613.8,2613.5,0.04510943]
[1729223861687,3.82607,2613.7,2613.5,0.04510943]
[1729223867269,3.82599,2613.7,2613.5,0.04510943]
[1729223868807,3.82614,2613.6,2613.5,0.04510943]
[1729223869802,3.82602,2613.7,2613.5,0.04510943]
[1729223870394,4.34593467,2613.8,2613.5,0.04510943]
[1729223870589,8.17188467,2613.8,2613.5,0.04510943]
[1729223870795,4.34593467,2613.8,2613.5,0.04510943]
[1729223870977,8.17189467,2613.8,2613.5,0.04510943]
[1729223871381,3.82604,2613.7,2613.5,0.04510943]
[1729223871805,3.0,2613.9,2613.5,3.87129943]
[1729223872319,3.0,2613.9,2613.6,0.6483]
[1729223872524,3.0,2613.9,2613.7,0.04455817]
[1729223872820,6.8257,2613.9,2613.7,0.04455817]
[1729223873719,3.0,2613.9,2613.7,0.04455817]
[1729223874514,6.82578,2613.9,2613.7,0.04455817]
[1729223874713,8.03569683,2613.9,2613.7,0.04455817]
[1729223876353,3.82584,2613.8,2613.7,0.04455817]
[1729223876555,3.826,2613.7,2613.4,0.6483]
[1729223876758,3.826,2613.7,2613.5,0.04452335]
[1729223877646,7.65207,2613.7,2613.5,0.04452335]
[1729223877813,3.826,2613.7,2613.5,0.04452335]
[1729223878147,3.82603,2613.7,2613.5,0.04452335]
[1729223880428,7.65211,2613.7,2613.5,0.04452335]
[1729223882386,3.82603,2613.7,2613.5,0.04452335]
[1729223882962,7.65213,2613.7,2613.5,0.04452335]
[1729223884092,3.82603,2613.7,2613.5,0.04452335]
[1729223884253,7.6521,2613.7,2613.5,0.04452335]
[1729223884674,3.82603,2613.7,2613.5,0.04452335]
[1729223885565,9.72451165,2613.9,2613.5,0.04452335]
[1729223885566,8.03570683,2613.9,2613.5,0.04452335]
[1729223885894,6.82571,2613.9,2613.6,0.07651553]
[1729223886094,8.51451482,2613.9,2613.6,0.07651553]
[1729223886302,8.51451482,2613.9,2613.7,0.04449037]
[1729223887301,8.51451482,2613.9,2613.4,4.47462]
[1729223887470,8.51451482,2613.9,2613.8,0.04447388]
[1729223887959,8.51451482,2613.9,2613.4,4.47462]
[1729223888159,8.51451482,2613.9,2613.5,0.04452335]
[1729223888699,3.82571,2613.9,2613.5,0.04452335]
[1729223888897,5.51466482,2613.8,2613.5,0.04452335]
[1729223889099,1.68880482,2613.8,2613.5,0.04452335]
[1729223889605,4.81964015,2613.9,2613.5,0.04452335]
[1729223889606,2.68273497,2613.9,2613.5,0.04452335]
[1729223889761,5.51452482,2613.9,2613.5,0.04452335]
[1729223890465,3.82585,2613.8,2613.5,0.04452335]
[1729223890680,5.51450482,2613.9,2613.5,0.04452335]
[1729223890885,9.34032482,2613.9,2613.5,0.04452335]
[1729223891067,3.82587,2613.8,2613.5,0.04452335]
[1729223891274,6.4487123,2613.8,2613.5,0.04452335]
[1729223891484,4.75990748,2613.8,2613.5,0.04452335]
[1729223892874,6.4487123,2613.8,2613.5,0.04452335]
[1729223893570,4.75990748,2613.8,2613.5,0.04452335]
[1729223893809,3.82587,2613.8,2613.5,0.04452335]
[1729223897640,5.51453482,2613.9,2613.5,0.04452335]
[1729223899008,3.82573,2613.9,2613.5,0.04452335]
[1729223899333,5.51453482,2613.9,2613.5,0.04452335]
[1729223899538,3.82573,2613.9,2613.5,0.04452335]
[1729223901205,5.51436482,2614.0,2613.5,0.04452335]
[1729223901442,3.82556,2614.0,2613.5,3.94729986]
[1729223901739,5.51436482,2614.0,2613.5,3.94729986]
[1729223902044,3.82572,2613.9,2613.5,3.94729986]
[1729223903314,3.82572,2613.9,2613.5,0.12103986]
[1729223906451,5.51452482,2613.9,2613.5,0.12103986]
[1729223906613,3.82572,2613.9,2613.5,0.12103986]
[1729223908145,7.65154,2613.9,2613.5,0.04452335]
[1729223908345,8.58773065,2613.9,2613.5,0.04452335]
[1729223908667,1.68880482,2613.8,2613.5,0.04452335]
[1729223909120,1.68880482,2613.8,2613.5,3.94731021]
[1729223909514,1.68880482,2613.8,2613.5,0.12104021]
[1729223909733,1.68880482,2613.8,2613.5,0.04452335]
[1729223909929,1.68880482,2613.8,2613.5,3.87079335]
[1729223910117,1.68880482,2613.8,2613.5,3.94731025]
[1729223910543,1.68880482,2613.8,2613.5,0.12104025]
[1729223912577,3.82549,2614.1,2613.5,0.12104025]
[1729223912578,3.82548,2614.1,2613.5,4.60686445]
[1729223912768,1.68880482,2614.0,2613.6,0.6483]
[1729223912976,5.51435482,2614.0,2613.7,0.04439354]
[1729223913191,1.68880482,2614.0,2613.7,0.04439354]
[1729223913569,1.68880482,2614.0,2613.7,3.87036354]
[1729223914189,1.68880482,2613.9,2613.7,0.04439354]
[1729223914596,1.68880482,2614.0,2613.7,0.04439354]
[1729223914783,1.68880482,2613.9,2613.7,0.04439354]
[1729223914957,1.68880482,2614.0,2613.7,0.04439354]
[1729223915158,1.68880482,2614.0,2613.7,3.87037354]
[1729223915392,1.68880482,2613.9,2613.7,3.87037354]
[1729223917324,3.19111256,2614.2,2613.8,3.8257]
[1729223917616,3.19111256,2614.2,2613.9,0.69262667]
[1729223917617,1.68880482,2614.1,2613.9,0.69262667]
[1729223919379,4.61451167,2614.4,2613.9,0.69262667]
[1729223919596,1.68880482,2614.2,2613.9,0.69262667]
[1729223920081,3.82521,2614.3,2613.9,0.69262667]
[1729223920082,1.68880482,2614.1,2613.9,0.69262667]
[1729223920517,1.68880482,2614.0,2613.9,0.69262667]
[1729223920717,1.68880482,2614.0,2613.9,0.04432667]
[1729223921023,1.68880482,2614.0,2613.7,1.57046301]
[1729223921224,1.68880482,2613.8,2613.7,0.6483]
[1729223921534,1.68880482,2613.9,2613.7,0.6483]
[1729223922888,3.82528,2614.2,2613.7,4.55078113]
[1729223923138,1.68880482,2614.1,2613.7,4.55078113]
[1729223924545,1.68880482,2614.0,2613.7,4.55078113]
[1729223924845,1.68880482,2613.9,2613.7,0.6483]
[1729223925948,1.68880482,2613.8,2613.4,5.27492472]
[1729223926242,1.68880482,2613.7,2613.4,4.4747]
[1729223927208,1.68880482,2613.7,2613.4,5.38485447]
[1729223928219,1.68880482,2613.6,2613.4,5.38485447]
[1729223928548,1.68880482,2613.7,2613.4,5.38485447]
[1729223929109,1.68880482,2613.6,2613.4,6.18507919]
[1729223929511,1.68880482,2613.6,2613.4,5.38485447]
[1729223929833,1.68880482,2613.6,2613.4,6.18507919]
[1729223930016,1.68880482,2613.7,2613.4,6.18507919]
[1729223930217,1.68880482,2613.7,2613.5,3.82628]
[1729223930641,1.68880482,2613.7,2613.4,6.18507919]
[1729223930848,1.68880482,2613.7,2613.4,10.01142919]
[1729223931043,1.68880482,2613.7,2613.4,6.18502919]
[1729223931345,1.68880482,2613.7,2613.4,5.38480447]
[1729223931551,1.68880482,2613.6,2613.4,6.18502919]
[1729223932469,0.19318072,2613.9,2613.5,0.69502203]
[1729223932678,1.68880482,2613.9,2613.6,3.82606]
[1729223933046,1.68880482,2613.7,2613.5,1.41872764]
[1729223933247,1.68880482,2613.7,2613.5,4.44478292]
[1729223933850,1.68880482,2613.8,2613.5,4.44478292]
[1729223935154,1.68880482,2613.8,2613.5,4.52129945]
[1729223935462,3.82558,2614.0,2613.5,4.52129945]
[1729223935668,1.68880482,2613.8,2613.5,4.52129945]
[1729223935875,1.68880482,2613.8,2613.5,4.52129946]
[1729223936041,1.68880482,2613.8,2613.5,4.44478292]
[1729223936385,1.68880482,2613.8,2613.5,4.52129949]
[1729223938354,1.68880482,2613.8,2613.5,4.44478292]
[1729223939296,1.68880482,2613.8,2613.5,4.52122954]
[1729223939991,1.68880482,2613.8,2613.6,0.04425024]
[1729223940757,1.68880482,2613.7,2613.6,0.04425024]
[1729223940994,1.68880482,2613.8,2613.6,0.04425024]
[1729223942261,1.68880482,2613.7,2613.6,0.04425024]
[1729223942460,3.82643,2613.4,2613.1,0.80022472]
[1729223942696,3.82643,2613.4,2613.0,0.80022472]
[1729223942697,1.68880482,2613.2,2613.0,0.80022472]
[1729223942854,3.8266,2613.3,2613.0,0.80022472]
[1729223942855,1.68880482,2613.1,2613.0,0.80022472]
[1729223943059,1.68880482,2613.2,2612.9,4.47546]
[1729223943257,1.68880482,2613.1,2612.9,0.6483]
[1729223943454,1.68880482,2613.1,2612.9,1.29590818]
[1729223943678,1.68880482,2613.1,2612.9,5.12303818]
[1729223943899,1.68880482,2613.0,2612.9,1.29590818]
[1729223944054,4.62336,2613.3,2612.9,0.64760818]
[1729223944055,1.68880482,2613.1,2612.9,0.64760818]
[1729223944256,4.64492167,2613.3,2612.7,5.27586472]
[1729223944257,1.68880482,2613.0,2612.7,5.27586472]
[1729223944495,1.68880482,2613.0,2612.7,0.6483]
[1729223945399,3.82673,2613.2,2612.7,0.6483]
[1729223945400,1.68880482,2612.9,2612.7,0.6483]
[1729223946609,1.68880482,2613.0,2612.7,0.6483]
[1729223946811,1.68880482,2613.0,2612.7,4.47575]
[1729223947526,3.84829167,2613.2,2612.7,4.47575]
[1729223947678,3.37760964,2612.8,2612.4,1.44852472]
[1729223948009,5.51643482,2612.6,2612.2,0.80022472]
[1729223948208,1.68880482,2612.6,2612.2,3.82818]
[1729223948513,0.02156167,2612.8,2612.1,5.27676472]
[1729223948514,3.84900167,2612.8,2612.1,4.47654]
[1729223948709,1.68880482,2612.6,2612.2,3.82811]
[1729223948914,1.68880482,2612.6,2612.1,5.29313066]
[1729223949110,1.68880482,2612.6,2612.1,5.36968746]
[1729223949412,0.7573,2612.9,2612.4,3.82786]
[1729223949573,1.68880482,2612.5,2612.2,0.6483]
[1729223949769,0.77886167,2612.9,2612.2,1.25764254]
[1729223949770,1.68880482,2612.6,2612.2,1.25764254]
[1729223950098,2.47070482,2612.6,2612.2,5.08581254]
[1729223950407,1.68880482,2612.5,2612.2,5.08581254]
[1729223950590,0.7819,2612.6,2612.1,4.64482066]
[1729223950591,1.68880482,2612.4,2612.1,4.64482066]
[1729223951686,1.68880482,2612.4,2612.1,8.47306066]
[1729223951918,1.68880482,2612.4,2612.1,4.64482066]
[1729223952226,2.44580482,2612.2,2611.8,2.64204545]
[1729223952506,5.51743482,2611.9,2611.8,2.64204545]
[1729223952712,0.77856167,2612.1,2611.8,2.64204545]
[1729223952713,0.757,2612.1,2611.8,2.64204545]
[1729223953069,0.757,2612.1,2611.9,0.03415116]
[1729223953070,0.77856167,2612.1,2611.9,0.03415116]
[1729223953283,4.60694167,2612.1,2611.9,0.03415116]
[1729223953497,0.77856167,2612.1,2611.9,0.03415116]
[1729223953697,1.68880482,2612.0,2611.9,0.03415116]
[1729223954282,3.37760964,2612.0,2611.9,0.03415116]
[1729223954486,3.81231562,2612.0,2611.9,0.03415116]
[1729223954691,2.1235108,2612.0,2611.9,0.03415116]
[1729223954890,1.71036649,2612.0,2611.9,0.03415116]
[1729223955088,3.39917131,2612.0,2611.9,0.03415116]
[1729223955504,3.39917131,2612.0,2611.8,2.64204545]
[1729223955505,1.71036649,2612.0,2611.8,2.64204545]
[1729223955698,1.68880482,2611.9,2611.8,2.64204545]
[1729223956486,9.34363482,2611.9,2611.8,2.64204545]
[1729223956810,10.88065543,2611.9,2611.8,2.64204545]
[1729223957920,11.43065543,2611.9,2611.8,2.64204545]
[1729223958412,11.83075388,2611.9,2611.8,2.64204545]
[1729223961725,11.83075388,2611.9,2611.8,2.67836597]
[1729223961935,11.83075388,2611.9,2611.8,2.64204545]
[1729223962112,11.83075388,2611.9,2611.8,2.67836597]
[1729223962883,11.83075388,2611.9,2611.8,2.64204545]
[1729223963330,11.83075388,2611.9,2611.8,2.67836597]
[1729223964537,11.83075388,2611.9,2611.8,2.64204545]
[1729223965189,11.83075388,2611.9,2611.8,2.676482]
[1729223965418,11.83075388,2611.9,2611.8,2.64204545]
[1729223965619,11.83075388,2611.9,2611.8,2.676482]
[1729223966534,62.73075388,2611.9,2611.8,2.676482]
[1729223966685,39.21365468,2611.9,2611.8,2.64204545]
[1729223968942,5.76331906,2611.9,2611.8,2.64204545]
[1729223969108,5.51500482,2611.9,2611.8,2.64204545]
[1729223969296,5.53656649,2611.9,2611.8,2.6766806]
[1729223969925,5.51500482,2611.9,2611.8,2.6766806]
[1729223970394,5.53656649,2611.9,2611.8,2.6766806]
[1729223970737,4.68880482,2611.9,2611.8,2.6766806]
[1729223970923,8.51715482,2612.1,2611.8,2.6766806]
[1729223971122,1.35130501,2612.0,2611.8,2.6766806]
[1729223971424,1.71036649,2612.0,2611.8,2.6766806]
[1729223971624,1.68880482,2611.9,2611.8,2.6766806]
[1729223971822,3.85011167,2612.0,2611.8,2.6766806]
[1729223971823,5.53891649,2612.0,2611.8,2.6766806]
[1729223972139,1.68880482,2611.9,2611.8,2.6766806]
[1729223972322,5.53891649,2612.0,2611.8,2.6766806]
[1729223972635,1.68880482,2611.9,2611.8,2.6766806]
[1729223972840,5.51743482,2611.9,2611.8,2.6766806]
[1729223973345,9.82853482,2611.9,2611.8,2.6766806]
[1729223973837,9.82853482,2611.9,2611.8,2.64204545]
[1729223974047,61.12849606,2611.9,2611.8,2.64204545]
[1729223974232,58.45309658,2611.9,2611.8,2.64204545]
[1729223974435,50.18075758,2611.9,2611.8,2.64204545]
[1729223974634,46.16353158,2611.9,2611.8,2.64204545]
[1729223975506,3.82936,2611.4,2611.3,0.1284384]
[1729223975749,26.94293382,2611.4,2611.3,0.1284384]
[1729223975908,34.84776935,2611.4,2611.3,0.1284384]
[1729223976538,19.40688435,2611.4,2611.3,0.1284384]
[1729223978352,10.3759979,2611.4,2611.3,0.1284384]
[1729223978558,3.7747,2611.4,2611.3,0.1284384]
[1729223978721,0.02156167,2611.8,2611.4,4.47766]
[1729223979041,3.82786,2612.5,2611.9,3.82862]
[1729223979244,0.7747,2612.6,2612.0,0.03609038]
[1729223979245,0.02156167,2612.4,2612.0,0.03609038]
[1729223979452,0.02156167,2612.4,2612.0,0.04569266]
[1729223979821,0.7592,2612.8,2612.2,3.82807]
[1729223979822,0.02156167,2612.6,2612.2,3.82807]
[1729223980139,0.02156167,2612.6,2612.3,0.04564764]
[1729223980505,0.02156167,2612.6,2612.2,0.6483]
[1729223980732,3.84918167,2612.6,2612.4,0.04562513]
[1729223980941,0.02156167,2612.6,2612.2,0.6483]
[1729223981244,0.02156167,2612.8,2612.2,1.13469333]
[1729223981418,0.02156167,2612.8,2612.3,3.82792]
[1729223981823,3.84858167,2613.0,2612.4,3.82779]
[1729223982035,3.84858167,2613.0,2612.3,7.65587]
[1729223982221,3.82719,2612.9,2612.3,3.82792]
[1729223982442,0.02156167,2612.8,2612.4,0.49626133]
[1729223982657,0.02156167,2612.9,2612.4,4.32415133]
[1729223982941,3.02156167,2612.9,2612.4,4.32415133]
[1729223983145,6.84874167,2612.9,2612.4,0.49626133]
[1729223984345,3.02156167,2612.9,2612.4,0.49626133]
[1729223984553,6.84874167,2612.9,2612.3,3.8279]
[1729223984710,3.82743,2612.8,2612.2,4.47644]
[1729223985047,0.02156167,2612.7,2612.2,4.47644]
[1729223985634,3.84902167,2612.7,2612.2,4.47644]
[1729223985813,0.02156167,2612.7,2612.2,4.47644]
[1729223986144,0.02156167,2612.7,2612.3,0.447644]
[1729223986356,3.8276,2612.6,2611.9,0.6483]
[1729223986524,3.8279,2612.4,2611.9,0.6483]
[1729223986714,0.02156167,2612.3,2611.9,0.6483]
[1729223987635,0.02156167,2612.3,2611.9,4.47689]
[1729223988660,0.02156167,2612.3,2611.9,0.6483]
[1729223990453,0.02156167,2612.4,2612.0,3.82834]
[1729223990668,0.02156167,2612.5,2612.1,3.82821]
[1729223990894,0.02156167,2612.5,2612.0,3.82834]
[1729223991091,0.02156167,2612.5,2612.2,3.82817]
[1729223991676,0.02156167,2612.6,2612.2,3.82817]
[1729223991974,3.84917167,2612.6,2612.1,4.3590207]
[1729223992270,0.02156167,2612.6,2612.1,7.6566]
[1729223992444,0.02156167,2612.6,2612.1,3.8283]
[1729223993136,0.02156167,2612.6,2612.1,7.65654]
[1729223993339,0.55,2612.4,2611.9,0.6483]
[1729223993539,3.82821,2612.2,2611.7,3.82884]
[1729223993832,1.63372281,2612.4,2611.7,3.82883]
[1729223993833,0.02156167,2612.1,2611.7,3.82883]
[1729223994074,0.02156167,2612.3,2611.7,3.82883]
[1729223994272,3.84963167,2612.3,2611.7,7.65767]
[1729223994623,0.02156167,2612.3,2611.8,3.82863]
[1729223994888,0.02156167,2612.3,2611.9,3.8286]
[1729223995032,0.02156167,2612.3,2611.7,3.82883]
[1729223995235,0.02156167,2612.4,2611.8,3.90522234]
[1729223995448,0.02156167,2612.4,2612.0,3.8284]
[1729223995675,0.02156167,2612.4,2612.1,3.82833]
[1729223995878,0.02156167,2612.4,2612.0,3.8284]
[1729223996040,0.02156167,2612.4,2612.0,7.6568]
[1729223996235,0.02156167,2612.5,2612.0,3.8284]
[1729223996549,0.02156167,2612.5,2612.0,7.6568]
[1729223997073,0.02156167,2612.5,2612.0,3.8284]
[1729223997291,0.02156167,2612.5,2612.1,3.82832]
[1729223997445,0.02156167,2612.5,2612.0,3.82839]
[1729223998888,3.84933167,2612.5,2612.0,3.82839]
[1729223999388,7.67717167,2612.5,2612.0,3.82839]
[1729223999795,3.84933167,2612.5,2612.0,3.82839]
[1729224000298,7.67720167,2612.5,2612.0,3.82839]
[1729224000481,3.84933167,2612.5,2612.0,3.82839]
[1729224000799,7.67717167,2612.5,2612.0,3.82839]
[1729224000967,8.74488884,2612.5,2612.0,3.82839]
[1729224001178,4.89548717,2612.5,2612.0,3.82839]
[1729224001372,4.91704884,2612.5,2612.0,3.82839]
[1729224001906,5.01075502,2612.8,2612.2,3.82805]
[1729224002088,0.02156167,2612.8,2612.4,3.82781]
[1729224002725,0.02156167,2612.8,2612.5,3.82766]
[1729224002931,0.02156167,2612.8,2612.6,3.8276]
[1729224003224,0.02156167,2613.0,2612.6,3.8276]
[1729224003388,0.02156167,2613.0,2612.6,4.657976]
[1729224004531,0.02156167,2613.0,2612.6,8.485406]
[1729224004955,0.02156167,2613.1,2612.6,4.657886]
[1729224005092,0.02156167,2613.1,2612.6,8.485396]
[1729224005402,0.02156167,2613.1,2612.6,2.07346642]
[1729224005600,6.06837135,2612.6,2612.5,0.6483]
[1729224005788,9.21535202,2612.6,2612.5,4.923668]
[1729224005990,10.38867785,2612.6,2612.5,4.923668]
[1729224006187,10.38867785,2612.6,2612.5,1.095918]
[1729224006394,10.38867785,2612.6,2612.2,0.6483]
[1729224006612,0.02156167,2612.5,2612.2,0.6483]
[1729224008957,10.38867785,2612.6,2612.2,0.6483]
[1729224009098,0.02156167,2612.5,2612.2,0.6483]
[1729224009539,0.02156167,2612.5,2612.0,4.47668]
[1729224009752,0.02156167,2612.5,2612.0,8.30508]
[1729224010057,0.02156167,2612.5,2612.0,4.47668]
[1729224010356,10.38867785,2612.6,2612.2,3.8281]
[1729224010659,0.02156167,2612.5,2612.0,0.6483]
[1729224010952,0.02156167,2612.5,2611.3,1.32877548]
[1729224010953,3.82833,2612.1,2611.5,4.47751]
[1729224011151,0.82016167,2612.0,2611.5,4.47751]
[1729224011336,4.64871167,2612.0,2611.5,0.84352184]
[1729224012441,0.02156167,2612.0,2611.6,4.47725]
[1729224012641,0.02156167,2612.1,2611.6,4.47732]
[1729224013148,0.02156167,2612.1,2611.6,0.6483]
[1729224013782,3.82856,2612.0,2611.4,4.47763]
[1729224013977,0.02156167,2611.9,2611.4,4.47763]
[1729224014775,0.02156167,2611.9,2611.4,4.47762]
[1729224015470,4.61957167,2611.9,2611.3,3.9578084]
[1729224015676,4.61957167,2611.9,2611.3,7.7872384]
[1729224015978,4.61957167,2611.9,2611.3,3.9578084]
[1729224016476,3.82879,2611.8,2611.3,3.9578084]
[1729224016637,0.02156167,2611.7,2611.3,3.9578084]
[1729224018977,0.02156167,2611.7,2611.4,3.43782645]
[1729224019179,0.7523,2612.3,2612.1,3.82824]
[1729224019400,10.38867785,2612.6,2612.1,3.82824]
[1729224019401,0.02156167,2612.5,2612.1,3.82824]
[1729224020079,0.62114993,2612.5,2612.1,3.82824]
[1729224020701,0.62114993,2612.5,2612.2,0.6483]
[1729224020917,0.62114993,2612.5,2612.1,3.82824]
[1729224021900,0.02156167,2612.5,2612.1,3.82824]
[1729224022104,14.21627785,2612.6,2612.2,3.82816]
[1729224022105,10.38867785,2612.6,2612.2,3.82816]
[1729224022308,0.02156167,2612.5,2612.1,3.82824]
[1729224022983,0.02156167,2612.5,2611.9,3.82855]
[1729224022984,0.7595,2612.4,2611.9,3.82855]
[1729224023184,0.02156167,2612.3,2611.9,3.82855]
[1729224024084,10.38867785,2612.6,2612.0,0.72486493]
[1729224024430,10.38867785,2612.6,2612.1,3.82833]
[1729224024715,10.38867785,2612.6,2612.2,3.82819]
[1729224025692,10.38867785,2612.6,2612.1,7.65658]
[1729224025934,10.38867785,2612.6,2612.1,3.82825]
[1729224026106,10.38867785,2612.6,2612.2,3.82811]
[1729224026620,10.38867785,2612.6,2612.2,3.8281]
[1729224026822,10.38867785,2612.6,2612.3,3.82802]
[1729224027024,10.38867785,2612.6,2612.2,3.82817]
[1729224027446,10.38867785,2612.6,2612.2,3.82811]
[1729224027604,10.38867785,2612.6,2612.2,7.65622]
[1729224028047,10.38867785,2612.6,2612.2,4.658552]
[1729224030550,0.83696167,2612.5,2612.0,4.47666]
[1729224030839,0.83696167,2612.5,2611.9,0.830576]
[1729224031053,3.82798,2612.4,2611.8,3.82867]
[1729224031345,0.02156167,2612.3,2611.8,3.82876]
[1729224031503,0.02156167,2612.3,2611.9,3.82852]
[1729224031708,0.02156167,2612.3,2611.8,3.82876]
[1729224032003,0.02156167,2612.3,2611.8,3.82869]
[1729224032234,3.82805,2612.3,2611.8,3.82869]
[1729224032468,0.02156167,2612.2,2611.8,3.82869]
[1729224032638,0.7563,2612.1,2611.8,3.82869]
[1729224033046,0.7563,2612.1,2611.7,3.82892]
[1729224033243,3.82857,2612.0,2611.3,4.75816312]
[1729224033484,0.02156167,2611.9,2611.4,3.82927]
[1729224033693,3.85028167,2611.9,2611.4,3.82927]
[1729224034967,0.7878,2611.8,2611.4,3.82927]
[1729224035284,0.02156167,2611.7,2611.4,3.82927]
[1729224035843,0.02156167,2611.7,2611.3,0.1284384]
[1729224036887,0.02156167,2611.7,2611.3,3.9579284]
[1729224037180,0.02156167,2611.7,2611.3,0.1284384]
[1729224038511,8.44544,2611.8,2611.4,3.82925]
[1729224038512,0.7878,2611.8,2611.4,3.82925]
[1729224038678,0.7878,2611.8,2611.3,0.52423424]
[1729224038679,4.63815167,2611.8,2611.3,0.52423424]
[1729224038889,0.02156167,2611.9,2611.5,3.8291]
[1729224039066,4.66046167,2612.0,2611.5,3.8291]
[1729224039580,4.66046167,2612.0,2611.4,4.47752]
[1729224039908,3.82886,2611.8,2611.3,3.9579284]
[1729224040207,0.02156167,2611.7,2611.3,3.9579284]
[1729224041267,4.63879,2612.0,2611.5,3.82913]
[1729224041501,0.02156167,2611.9,2611.5,3.82913]
[1729224041706,0.02156167,2611.9,2611.5,0.77869184]
[1729224041864,0.8103,2612.0,2611.6,3.82906]
[1729224042069,0.8103,2612.0,2611.6,3.82898]